[Event "Magistral Ajedrez 2019"]
[Site "Zaragoza"]
[Date "2019.07.19"]
[Round "7.1"]
[White "Gomez Anadon, Daniel"]
[Black "Romero Pallares, Daniel"]
[Result "1/2-1/2"]
[ECO "B06"]
[WhiteElo "2305"]
[BlackElo "2230"]
[Annotator "ChessBase"]
[PlyCount "197"]
[EventDate "2019.07.15"]
[EventType "swiss"]
[EventCountry "ESP"]
[SourceTitle "playchess.com"]
[Source "ChessBase"]
[SourceQuality "1"]
[TimeControl "5400+30"]

1. e4 {[%emt 0:00:00]} g6 {[%emt 0:00:00]} 2. d4 {[%emt 0:00:00]} Bg7 {[%emt 0:00:00]} 3. Nc3 {[%emt 0:00:17]} c6 {[%emt 0:00:12]} 4. f4 {[%emt 0:02:30]} d5 {[%emt 0:00:07]} 5. e5 {[%emt 0:00:18]} Nh6 {[%emt 0:00:27]} 6. Nf3 {[%emt 0:00:37]} O-O {[%emt 0:00:45]} 7. Be3 {[%emt 0:01:46]} Bg4 {[%emt 0:00:35]} 8. h3 {[%emt 0:04:12]} Bxf3 {[%emt 0:00:10]} 9. Qxf3 {[%emt 0:00:27]} f6 {[%emt 0:00:20]} 10. exf6 {[%emt 0:03:37]} exf6 {[%emt 0:01:38]} 11. O-O-O {[%emt 0:03:40]} f5 {[%emt 0:06:45]} 12. Bd3 {[%emt 0:01:19]} Nd7 {[%emt 0:04:25]} 13. g4 {[%emt 0:01:21]} b5 {[%emt 0:02:34]} 14. Kb1 {[%emt 0:07:32]} Nb6 {[%emt 0:03:04]} 15. Ne2 {[%emt 0:10:40]} Nc4 {[%emt 0:04:52]} 16. Bc1 {[%emt 0:05:29]} Nd6 {[%emt 0:07:01]} 17. g5 {[%emt 0:00:55]} Nhf7 {[%emt 0:00:24]} 18. h4 {[%emt 0:00:19]} Ne4 {[%emt 0:02:45]} 19. h5 {[%emt 0:04:39]} Re8 {[%emt 0:00:22]} 20. Rh2 {[%emt 0:02:47]} Nfd6 {[%emt 0:02:13]} 21. Rdh1 {[%emt 0:01:05]} Qb6 {[%emt 0:02:58]} 22. hxg6 {[%emt 0:07:17]} hxg6 {[%emt 0:00:05]} 23. Rh7 {[%emt 0:12:36]} Kf7 {[%emt 0:00:30]} 24. R1h6 {[%emt 0:02:20]} Rh8 {[%emt 0:00:55]} 25. Qh3 {[%emt 0:01:13]} Rxh7 {[%emt 0:01:26]} 26. Rxh7 {[%emt 0:00:06]} Rg8 {[%emt 0:00:46]} 27. Ng1 {[%emt 0:04:27]} Nf2 {[%emt 0:18:19]} 28. Qe3 {[%emt 0:00:18]} Ng4 {[%emt 0:02:05]} 29. Qh3 {[%emt 0:02:24]} Qxd4 {[%emt 0:04:24]} 30. Nf3 {[%emt 0:00:36]} Qf2 {[%emt 0:11:35]} 31. Ne5+ {[%emt 0:01:11]} Nxe5 {[%emt 0:01:22]} 32. fxe5 {[%emt 0:00:07]} Nc4 {[%emt 0:05:00]} 33. Bxc4 {[%emt 0:00:57]} dxc4 {[%emt 0:00:08]} 34. Qa3 {[%emt 0:03:53]} Qd4 {[%emt 0:00:08]} 35. Qa6 {[%emt 0:01:15]} Qb6 {[%emt 0:02:45]} 36. Qa3 {[%emt 0:00:34]} Qc7 {[%emt 0:02:59]} 37. Qc5 {[%emt 0:01:30]} Rh8 {[%emt 0:02:02]} 38. Rxh8 {[%emt 0:00:56]} Bxh8 {[%emt 0:00:01]} 39. a4 {[%emt 0:00:30]} Qd7 {[%emt 0:07:24]} 40. axb5 {[%emt 0:03:10]} cxb5 {[%emt 0:00:07]} 41. Bf4 {[%emt 0:00:18]} Bg7 {[%emt 0:00:24]} 42. Ka2 {[%emt 0:04:02]} Ke6 {[%emt 0:03:15]} 43. Bg3 {[%emt 0:03:34]} Kf7 {[%emt 0:01:24]} 44. Bf4 {[%emt 0:00:24]} Bf8 {[%emt 0:00:45]} 45. e6+ {[%emt 0:01:41]} Qxe6 {[%emt 0:00:01]} 46. Qxb5 {[%emt 0:01:01]} Be7 {[%emt 0:00:41]} 47. c3 {[%emt 0:01:26]} Qe4 {[%emt 0:01:56]} 48. Qb8 {[%emt 0:00:56]} a5 {[%emt 0:01:03]} 49. Qc7 {[%emt 0:00:40]} a4 {[%emt 0:00:45]} 50. Be5 {[%emt 0:00:57]} Ke6 {[%emt 0:00:36]} 51. Bd4 {[%emt 0:01:06]} f4 {[%emt 0:00:28]} 52. Qc8+ {[%emt 0:00:24]} Kf7 {[%emt 0:00:14]} 53. Qh8 {[%emt 0:00:20]} a3 {[%emt 0:00:46]} 54. Qg7+ {[%emt 0:00:40]} Ke6 {[%emt 0:00:28]} 55. Qg8+ {[%emt 0:00:04]} Kf5 {[%emt 0:00:24]} 56. Qf7+ {[%emt 0:00:21]} Kg4 {[%emt 0:00:10]} 57. Qxc4 {[%emt 0:00:28]} axb2 {[%emt 0:00:27]} 58. Kxb2 {[%emt 0:00:14]} f3 {[%emt 0:00:21]} 59. Qc8+ {[%emt 0:01:27]} Kg3 {[%emt 0:01:00]} 60. Qc7+ {[%emt 0:00:34]} Kg2 {[%emt 0:00:12]} 61. Qa7 {[%emt 0:00:23]} Qe2+ {[%emt 0:00:49]} 62. Kb3 {[%emt 0:00:12]} Qb5+ {[%emt 0:00:09]} 63. Kc2 {[%emt 0:00:22]} Bxg5 {[%emt 0:00:20]} 64. Qa8 {[%emt 0:00:59]} Bh4 {[%emt 0:00:46]} 65. Kc1 {[%emt 0:00:34]} Qb3 {[%emt 0:00:53]} 66. Kd2 {[%emt 0:00:32]} Qb2+ {[%emt 0:00:13]} 67. Ke3 {[%emt 0:00:17]} Qe2+ {[%emt 0:00:46]} 68. Kf4 {[%emt 0:00:10]} g5+ {[%emt 0:00:23]} 69. Kf5 {[%emt 0:00:30]} Qd3+ {[%emt 0:00:16]} 70. Kg4 {[%emt 0:00:20]} Qe2 {[%emt 0:00:45]} 71. Qd5 {[%emt 0:00:10]} Bg3 {[%emt 0:00:40]} 72. Kxg5 {[%emt 0:00:58]} Qe7+ {[%emt 0:00:16]} 73. Kg4 {[%emt 0:00:52]} Qh4+ {[%emt 0:00:20]} 74. Kf5 {[%emt 0:00:13]} Qh5+ {[%emt 0:00:46]} 75. Ke6 {[%emt 0:00:08]} Qxd5+ {[%emt 0:00:37]} 76. Kxd5 {[%emt 0:00:01]} Bf2 {[%emt 0:00:24]} 77. Bf6 {[%emt 0:00:18]} Be1 {[%emt 0:00:15]} 78. Bd4 {[%emt 0:00:20]} Bxc3 {[%emt 0:00:28]} 79. Bc5 {[%emt 0:00:10]} Bb4 {[%emt 0:00:33]} 80. Bd4 {[%emt 0:00:16]} Bc3 {[%emt 0:00:01]} 81. Bc5 {[%emt 0:00:11]} Bb4 {[%emt 0:00:30]} 82. Bd4 {[%emt 0:00:08]} Kf1 {[%emt 0:00:03]} 83. Ke4 {[%emt 0:00:17]} Ke2 {[%emt 0:00:03]} 84. Bb6 {[%emt 0:01:09]} Bd6 {[%emt 0:00:21]} 85. Bd4 {[%emt 0:01:33]} Bg3 {[%emt 0:00:06]} 86. Bc5 {[%emt 0:00:35]} Bf2 {[%emt 0:00:05]} 87. Bd6 {[%emt 0:00:32]} Bd4 {[%emt 0:00:46]} 88. Bg3 {[%emt 0:00:18]} Bf6 {[%emt 0:00:08]} 89. Be1 {[%emt 0:01:19]} Be5 {[%emt 0:00:10]} 90. Bh4 {[%emt 0:00:07]} Bf6 {[%emt 0:00:28]} 91. Be1 {[%emt 0:00:15]} Bg5 {[%emt 0:00:30]} 92. Bg3 {[%emt 0:00:09]} Bd2 {[%emt 0:00:10]} 93. Bh4 {[%emt 0:00:16]} Be3 {[%emt 0:00:26]} 94. Bg3 {[%emt 0:00:41]} Bf2 {[%emt 0:00:12]} 95. Be5 {[%emt 0:00:15]} Bg1 {[%emt 0:00:19]} 96. Bg3 {[%emt 0:00:11]} Bf2 {[%emt 0:00:35]} 97. Be5 {[%emt 0:00:19]} Be1 {[%emt 0:00:04]} 98. Bd4 {[%emt 0:00:10]} f2 {[%emt 0:00:43]} 99. Bxf2 {[%emt 0:00:05]} 1/2-1/2

[Event "Magistral Ajedrez 2019"]
[Site "Zaragoza"]
[Date "2019.07.19"]
[Round "7.2"]
[White "Villuendas Valero, Adrian"]
[Black "Llorente Zaro, Alfonso"]
[Result "0-1"]
[ECO "B07"]
[WhiteElo "2250"]
[BlackElo "2445"]
[Annotator "NA"]
[PlyCount "87"]
[EventDate "2019.07.15"]
[EventType "swiss"]
[EventCountry "ESP"]
[SourceTitle "playchess.com"]
[Source "ChessBase"]
[SourceQuality "1"]
[TimeControl "5400+30"]

1. d4 {[%emt 0:00:00]} d6 {[%emt 0:00:48]} 2. e4 {[%emt 0:00:10]} Nf6 {[%emt 0:00:17]} 3. Nc3 {[%emt 0:00:09]} e5 {[%emt 0:00:06]} 4. dxe5 {[%emt 0:00:43]} dxe5 {[%emt 0:00:06]} 5. Qxd8+ {[%emt 0:00:06]} Kxd8 {[%emt 0:00:04]} 6. Bg5 {[%emt 0:00:13]} Bd6 {[%emt 0:00:36]} 7. f4 {[%emt 0:01:40]} h6 {[%emt 0:13:59]} 8. Bh4 {[%emt 0:11:13]} exf4 {[%emt 0:05:58]} 9. O-O-O {[%emt 0:01:37]} Nbd7 {[%emt 0:02:07]} 10. Nf3 {[%emt 0:03:24]} Re8 {[%emt 0:07:18]} 11. Bxf6+ {[%emt 0:23:56]} gxf6 {[%emt 0:01:05]} 12. Bc4 {[%emt 0:01:35]} Ne5 {[%emt 0:17:09]} 13. Nxe5 {[%emt 0:03:45]} Rxe5 {[%emt 0:10:58]} 14. Nb5 {[%emt 0:07:02]} Rxe4 {[%emt 0:06:16]} 15. Nxd6 {[%emt 0:00:20]} cxd6 {[%emt 0:00:06]} 16. Bd5 {[%emt 0:05:03]} Re5 {[%emt 0:01:34]} 17. Rhf1 {[%emt 0:03:42]} Rb8 {[%emt 0:09:06]} 18. Rxf4 {[%emt 0:01:42]} Be6 {[%emt 0:00:35]} 19. Bxe6 {[%emt 0:02:45]} Rxe6 {[%emt 0:00:09]} 20. Rh4 {[%emt 0:00:47]} Ke7 {[%emt 0:00:31]} 21. Rxh6 {[%emt 0:01:06]} Rg8 {[%emt 0:01:57]} 22. g3 {[%emt 0:00:41]} f5 {[%emt 0:00:38]} 23. Rh4 {[%emt 0:03:53]} Rg4 {[%emt 0:02:28]} 24. Rd4 {[%emt 0:01:10]} Rxh4 {[%emt 0:00:48]} 25. Rxh4 {[%emt 0:00:10]} Re2 {[%emt 0:00:15]} 26. Rh8 {[%emt 0:10:32]} Kf6 {[%emt 0:01:31]} 27. h4 {[%emt 0:02:02]} Rg2 {[%emt 0:01:13]} 28. h5 {[%emt 0:01:52]} Rxg3 {[%emt 0:00:30]} 29. Kd2 {[%emt 0:00:00]} f4 {[%emt 0:03:18]} 30. h6 {[%emt 0:01:24]} Rh3 {[%emt 0:00:27]} 31. h7 {[%emt 0:05:16]} Rh2+ {[%emt 0:05:08]} 32. Kd3 {[%emt 0:00:12]} Kf5 {[%emt 0:00:10]} 33. c4 {[%emt 0:01:27]} b6 {[%emt 0:02:46]} 34. b4 {[%emt 0:02:21]} f6 {[%emt 0:03:14]} 35. b5 {[%emt 0:02:27]} Rh3+ {[%emt 0:00:21]} 36. Kd4 {[%emt 0:02:09]} Rh1 {[%emt 0:00:49]} 37. Kd3 {[%emt 0:00:13]} Rh2 {[%emt 0:00:22]} 38. Kd4 {[%emt 0:00:17]} Rh3 {[%emt 0:01:30]} 39. a4 {[%emt 0:00:28]} Rh1 {[%emt 0:00:46]} 40. Kd3 {[%emt 0:00:04]} Rh2 {[%emt 0:00:15]} 41. a5 {[%emt 0:02:09]} bxa5 {[%emt 0:00:14]} 42. Rd8 {[%emt 0:00:04]} Rxh7 {[%emt 0:00:11]} 43. Rxd6 {[%emt 0:00:08]} Re7 {[%emt 0:00:12]} 44. Kd4 {Ke5+} 0-1

[Event "Magistral Ajedrez 2019"]
[Site "Zaragoza"]
[Date "2019.07.19"]
[Round "7.3"]
[White "Randazzo, Adrian"]
[Black "Sos Andreu, Eric"]
[Result "1/2-1/2"]
[ECO "C01"]
[WhiteElo "2227"]
[BlackElo "2343"]
[Annotator "NA"]
[PlyCount "69"]
[EventDate "2019.07.15"]
[EventType "swiss"]
[EventCountry "ESP"]
[SourceTitle "playchess.com"]
[Source "ChessBase"]
[SourceQuality "1"]
[TimeControl "5400+30"]

1. e4 {[%emt 0:00:00]} e6 {[%emt 0:00:00]} 2. d4 {[%emt 0:00:00]} d5 {[%emt 0:00:12]} 3. exd5 {[%emt 0:00:16]} exd5 {[%emt 0:00:12]} 4. Bd3 {[%emt 0:00:23]} Bd6 {[%emt 0:01:39]} 5. Nf3 {[%emt 0:00:36]} Nf6 {[%emt 0:01:13]} 6. Qe2+ {[%emt 0:01:11]} Qe7 {[%emt 0:01:04]} 7. Qxe7+ {[%emt 0:00:59]} Bxe7 {[%emt 0:01:14]} 8. O-O {[%emt 0:00:56]} O-O {[%emt 0:00:36]} 9. Bg5 {[%emt 0:01:12]} Bg4 {[%emt 0:01:57]} 10. Nbd2 {[%emt 0:02:03]} Nbd7 {[%emt 0:01:05]} 11. Rfe1 {[%emt 0:01:13]} Rfe8 {[%emt 0:00:43]} 12. c3 {[%emt 0:01:09]} Bd6 {[%emt 0:00:35]} 13. Kf1 {[%emt 0:00:53]} Kf8 {[%emt 0:01:04]} 14. h3 {[%emt 0:03:25]} Bxf3 {[%emt 0:02:55]} 15. Nxf3 {[%emt 0:00:13]} h6 {[%emt 0:00:12]} 16. Bxf6 {[%emt 0:01:09]} Nxf6 {[%emt 0:00:10]} 17. Rxe8+ {[%emt 0:02:52]} Rxe8 {[%emt 0:01:51]} 18. Re1 {[%emt 0:00:11]} Rxe1+ {[%emt 0:02:22]} 19. Kxe1 {[%emt 0:00:32]} Ke7 {[%emt 0:00:29]} 20. Ke2 {[%emt 0:00:53]} c6 {[%emt 0:00:30]} 21. Nd2 {[%emt 0:02:22]} Nd7 {[%emt 0:01:31]} 22. g3 {[%emt 0:00:44]} Nf8 {[%emt 0:01:57]} 23. a4 {[%emt 0:01:21]} Ne6 {[%emt 0:01:00]} 24. h4 {[%emt 0:02:06]} h5 {[%emt 0:02:33]} 25. Nf3 {[%emt 0:01:41]} g6 {[%emt 0:00:29]} 26. Ng5 {[%emt 0:00:53]} Nxg5 {[%emt 0:00:45]} 27. hxg5 {[%emt 0:00:05]} a5 {[%emt 0:00:38]} 28. f4 {[%emt 0:01:11]} f5 {[%emt 0:01:28]} 29. gxf6+ {[%emt 0:01:49]} Kxf6 {[%emt 0:00:05]} 30. Kf3 {[%emt 0:00:24]} b6 {[%emt 0:00:40]} 31. b3 {[%emt 0:02:02]} Ba3 {[%emt 0:01:21]} 32. Ba6 {[%emt 0:00:28]} Bb2 {[%emt 0:00:17]} 33. Bb7 {[%emt 0:00:16]} Bxc3 {[%emt 0:00:06]} 34. Bxc6 {[%emt 0:00:05]} Bxd4 {[%emt 0:00:04]} 35. Bxd5 {[%emt 0:00:08] Ke5 Ke4+} 1/2-1/2

[Event "Magistral Ajedrez 2019"]
[Site "Zaragoza"]
[Date "2019.07.19"]
[Round "7.4"]
[White "Chueca Forcen, Alberto"]
[Black "Kovacevic, Slobodan"]
[Result "1-0"]
[ECO "A61"]
[WhiteElo "2283"]
[BlackElo "2257"]
[Annotator "NA"]
[PlyCount "114"]
[EventDate "2019.07.15"]
[EventType "swiss"]
[EventCountry "ESP"]
[SourceTitle "playchess.com"]
[Source "ChessBase"]
[SourceQuality "1"]
[TimeControl "5400+30"]

1. d4 {[%emt 0:00:00]} Nf6 {[%emt 0:04:39]} 2. c4 {[%emt 0:01:13]} e6 {[%emt 0:00:26]} 3. Nc3 {[%emt 0:00:03]} c5 {[%emt 0:00:30]} 4. d5 {[%emt 0:00:04]} exd5 {[%emt 0:00:05]} 5. cxd5 {[%emt 0:00:05]} d6 {[%emt 0:00:09]} 6. Nf3 {[%emt 0:00:33]} g6 {[%emt 0:00:24]} 7. Bf4 {[%emt 0:00:45]} a6 {[%emt 0:01:32]} 8. e4 {[%emt 0:01:35]} Bg7 {[%emt 0:03:30]} 9. Qa4+ {[%emt 0:07:46]} Bd7 {[%emt 0:03:18]} 10. Qb3 {[%emt 0:06:23]} Bc8 {[%emt 0:02:14]} 11. a4 {[%emt 0:05:24]} O-O {[%emt 0:01:51]} 12. Bd3 {[%emt 0:00:38]} Nh5 {[%emt 0:03:00]} 13. Bg5 {[%emt 0:01:03]} Bf6 {[%emt 0:03:33]} 14. Bh6 {[%emt 0:00:43]} Re8 {[%emt 0:07:44]} 15. O-O {[%emt 0:03:44]} Nd7 {[%emt 0:03:36]} 16. Be3 {[%emt 0:05:27]} Ne5 {[%emt 0:24:54]} 17. Nxe5 {[%emt 0:02:49]} Bxe5 {[%emt 0:05:27]} 18. f4 {[%emt 0:01:36]} Bg7 {[%emt 0:00:50]} 19. Rae1 {[%emt 0:00:23]} Nf6 {[%emt 0:02:43]} 20. h3 {[%emt 0:05:47]} Nd7 {[%emt 0:01:26]} 21. e5 {[%emt 0:02:40]} dxe5 {[%emt 0:06:55]} 22. f5 {[%emt 0:00:28]} e4 {[%emt 0:04:03]} 23. fxg6 {[%emt 0:29:18]} hxg6 {[%emt 0:01:26]} 24. Bxe4 {[%emt 0:01:59]} Bxc3 {[%emt 0:06:33]} 25. Bxg6 {[%emt 0:00:47]} Bxe1 {[%emt 0:02:31]} 26. Bxf7+ {[%emt 0:04:42]} Kg7 {[%emt 0:02:57]} 27. Qd1 {[%emt 0:05:55]} Nf6 {[%emt 0:01:43]} 28. Bxe8 {[%emt 0:02:13]} Qxe8 {[%emt 0:00:39]} 29. Qxe1 {[%emt 0:00:05]} Qg6 {[%emt 0:00:45]} 30. Rf3 {[%emt 0:03:29]} Ne4 {[%emt 0:00:21]} 31. Bxc5 {[%emt 0:00:26]} Bd7 {[%emt 0:00:44]} 32. Bd4+ {[%emt 0:01:14]} Kg8 {[%emt 0:00:32]} 33. Qh4 {[%emt 0:00:03]} Qh7 {[%emt 0:02:06]} 34. Qxh7+ {[%emt 0:00:08]} Kxh7 {[%emt 0:00:04]} 35. Rf7+ {[%emt 0:00:07]} Kg6 {[%emt 0:00:03]} 36. Rxd7 {[%emt 0:00:18]} b5 {[%emt 0:00:11]} 37. axb5 {[%emt 0:01:32]} axb5 {[%emt 0:00:03]} 38. Rb7 {[%emt 0:00:28]} Ra1+ {[%emt 0:00:08]} 39. Kh2 {[%emt 0:00:08]} Rd1 {[%emt 0:00:02]} 40. Be3 {[%emt 0:01:38]} Rxd5 {[%emt 0:00:03]} 41. b4 {[%emt 0:01:16]} Rd3 {[%emt 0:00:40]} 42. Rb6+ {[%emt 0:00:53]} Kf7 {[%emt 0:00:12]} 43. Bc5 {[%emt 0:01:00]} Nc3 {[%emt 0:00:06]} 44. h4 {[%emt 0:00:13]} Rd5 {[%emt 0:00:20]} 45. Rd6 {[%emt 0:00:42]} Rxd6 {[%emt 0:00:52]} 46. Bxd6 {[%emt 0:00:01]} Ke6 {[%emt 0:00:11]} 47. Bf8 {[%emt 0:00:28]} Kf5 {[%emt 0:00:43]} 48. Kh3 {[%emt 0:00:13]} Ne4 {[%emt 0:00:01]} 49. Bh6 {[%emt 0:01:06]} Nf2+ {[%emt 0:00:09]} 50. Kg3 {[%emt 0:00:14]} Ng4 {[%emt 0:01:02]} 51. Bd2 {[%emt 0:00:27]} Ne5 {[%emt 0:00:23]} 52. Bc3 {[%emt 0:00:07]} Ng6 {[%emt 0:00:49]} 53. h5 {[%emt 0:01:14]} Ne7 {[%emt 0:00:33]} 54. Kf3 {[%emt 0:00:15]} Nd5 {[%emt 0:00:26]} 55. g4+ {[%emt 0:00:06]} Ke6 {[%emt 0:00:12]} 56. h6 {[%emt 0:00:47]} Nxc3 {[%emt 0:00:07]} 57. h7 {[%emt 0:00:06]} Kd5 {Ke4+} 1-0

[Event "Magistral Ajedrez 2019"]
[Site "Zaragoza"]
[Date "2019.07.19"]
[Round "7.5"]
[White "Shome Shiv"]
[Black "Dardha, Daniel"]
[Result "0-1"]
[ECO "B32"]
[WhiteElo "2298"]
[BlackElo "2420"]
[Annotator "NA"]
[PlyCount "100"]
[EventDate "2019.07.15"]
[EventType "swiss"]
[EventCountry "ESP"]
[SourceTitle "playchess.com"]
[Source "ChessBase"]
[SourceQuality "1"]
[TimeControl "5400+30"]

1. e4 {[%emt 0:00:00]} c5 {[%emt 0:00:00]} 2. Nf3 {[%emt 0:00:00]} Nc6 {[%emt 0:00:00]} 3. d4 {[%emt 0:00:00]} cxd4 {[%emt 0:00:00]} 4. Nxd4 {[%emt 0:00:06]} e5 {[%emt 0:00:00]} 5. Nb5 {[%emt 0:00:21]} d6 {[%emt 0:00:09]} 6. N1c3 {[%emt 0:01:43]} a6 {[%emt 0:00:07]} 7. Na3 {[%emt 0:00:03]} Be7 {[%emt 0:00:12]} 8. Nd5 {[%emt 0:01:49]} Nf6 {[%emt 0:00:27]} 9. Nxf6+ {[%emt 0:01:00]} Bxf6 {[%emt 0:00:07]} 10. Be2 {[%emt 0:00:58]} O-O {[%emt 0:00:58]} 11. O-O {[%emt 0:00:10]} Be6 {[%emt 0:06:41]} 12. c4 {[%emt 0:09:11]} Bg5 {[%emt 0:00:36]} 13. Nc2 {[%emt 0:02:19]} Bxc1 {[%emt 0:00:30]} 14. Rxc1 {[%emt 0:00:01]} Qh4 {[%emt 0:05:34]} 15. Qd3 {[%emt 0:06:45]} Rfd8 {[%emt 0:02:26]} 16. Rfd1 {[%emt 0:01:59]} Rac8 {[%emt 0:00:31]} 17. b3 {[%emt 0:01:27]} Qg5 {[%emt 0:03:20]} 18. Rd2 {[%emt 0:12:04]} Rd7 {[%emt 0:02:58]} 19. Rcd1 {[%emt 0:00:14]} Rcd8 {[%emt 0:00:30]} 20. b4 {[%emt 0:04:43]} Ne7 {[%emt 0:04:44]} 21. Qa3 {[%emt 0:01:20]} Ng6 {[%emt 0:03:15]} 22. Ne3 {[%emt 0:07:35]} Nf4 {[%emt 0:02:06]} 23. Bf3 {[%emt 0:00:08]} h5 {[%emt 0:02:16]} 24. Kh1 {[%emt 0:07:30]} h4 {[%emt 0:10:16]} 25. g3 {[%emt 0:03:59]} hxg3 {[%emt 0:00:54]} 26. fxg3 {[%emt 0:00:19]} Nh5 {[%emt 0:00:55]} 27. Nd5 {[%emt 0:03:26]} Bxd5 {[%emt 0:02:01]} 28. Rxd5 {[%emt 0:00:14]} Nf6 {[%emt 0:04:11]} 29. R5d3 {[%emt 0:01:47]} Qg6 {[%emt 0:01:58]} 30. Re3 {[%emt 0:06:47]} Ne8 {[%emt 0:00:35]} 31. b5 {[%emt 0:09:26]} Nc7 {[%emt 0:01:24]} 32. Red3 {[%emt 0:01:15]} axb5 {[%emt 0:01:03]} 33. c5 {[%emt 0:00:26]} d5 {[%emt 0:05:27]} 34. Qa7 {[%emt 0:01:42]} f5 {[%emt 0:08:39]} 35. Qb6 {[%emt 0:03:29]} Qf7 {[%emt 0:01:36]} 36. Bg2 {[%emt 0:01:08]} dxe4 {[%emt 0:00:34]} 37. Rd6 {[%emt 0:01:13]} Ne6 {[%emt 0:02:02]} 38. Bf1 {[%emt 0:01:53]} Nd4 {[%emt 0:02:23]} 39. Bxb5 {[%emt 0:00:31]} Rxd6 {[%emt 0:00:41]} 40. cxd6 {[%emt 0:00:01]} Qf6 {[%emt 0:00:25]} 41. Bc4+ {[%emt 0:00:06]} Kh7 {[%emt 0:00:26]} 42. Qxb7 {[%emt 0:00:07]} Rxd6 {[%emt 0:00:55]} 43. a4 {[%emt 0:02:02]} Rc6 {[%emt 0:07:48]} 44. Qb4 {[%emt 0:03:27]} Qh6 {[%emt 0:01:36]} 45. Bf1 {[%emt 0:04:45]} Rc2 {[%emt 0:01:20]} 46. Bg2 {[%emt 0:00:03]} Nf3 {[%emt 0:00:17]} 47. h4 Nxh4 {[%emt 0:00:23]} 48. gxh4 {[%emt 0:00:16]} Qxh4+ {[%emt 0:00:06]} 49. Kg1 {[%emt 0:00:02]} Qf2+ {[%emt 0:00:07]} 50. Kh1 {[%emt 0:00:04]} Qxg2# {[%emt 0:00:08]} 0-1

[Event "Magistral Ajedrez 2019"]
[Site "Zaragoza"]
[Date "2019.07.20"]
[Round "8.1"]
[White "Romero Pallares, Daniel"]
[Black "Dardha, Daniel"]
[Result "1/2-1/2"]
[ECO "A05"]
[WhiteElo "2230"]
[BlackElo "2420"]
[Annotator "NA"]
[PlyCount "60"]
[EventDate "2019.07.15"]
[EventType "swiss"]
[EventCountry "ESP"]
[SourceTitle "playchess.com"]
[Source "ChessBase"]
[SourceQuality "1"]
[TimeControl "5400+30"]

1. Nf3 {[%emt 0:00:00]} Nf6 {[%emt 0:00:00]} 2. b3 {[%emt 0:00:24]} g6 {[%emt 0:00:36]} 3. Bb2 {[%emt 0:00:05]} Bg7 {[%emt 0:00:03]} 4. g3 {[%emt 0:00:13]} b6 {[%emt 0:00:38]} 5. Bg2 {[%emt 0:00:15]} Bb7 {[%emt 0:00:06]} 6. O-O {[%emt 0:00:31]} O-O {[%emt 0:00:10]} 7. c4 {[%emt 0:00:52]} c5 {[%emt 0:00:52]} 8. d4 {[%emt 0:01:20]} cxd4 {[%emt 0:00:08]} 9. Nxd4 {[%emt 0:00:20]} Bxg2 {[%emt 0:02:34]} 10. Kxg2 {[%emt 0:00:02]} d5 {[%emt 0:01:21]} 11. cxd5 {[%emt 0:17:26]} Qxd5+ {[%emt 0:01:19]} 12. Nf3 {[%emt 0:01:27]} Nc6 {[%emt 0:00:41]} 13. Qxd5 {[%emt 0:01:19]} Nxd5 {[%emt 0:00:05]} 14. Bxg7 {[%emt 0:00:07]} Kxg7 {[%emt 0:00:05]} 15. Nbd2 {[%emt 0:04:23]} Rac8 {[%emt 0:01:00]} 16. Rac1 {[%emt 0:00:57]} Rfd8 {[%emt 0:00:35]} 17. Nc4 {[%emt 0:04:12]} Nf6 {[%emt 0:02:54]} 18. Rfd1 {[%emt 0:01:20]} Rxd1 {[%emt 0:01:59]} 19. Rxd1 {[%emt 0:00:03]} Kf8 {[%emt 0:00:35]} 20. Kf1 {[%emt 0:06:47]} Rd8 {[%emt 0:01:18]} 21. Rc1 {[%emt 0:05:45]} Nd4 {[%emt 0:02:06]} 22. Nxd4 {[%emt 0:02:14]} Rxd4 {[%emt 0:00:07]} 23. Ke1 {[%emt 0:02:12]} Nd7 {[%emt 0:03:16]} 24. Rd1 {[%emt 0:02:02]} Rxd1+ {[%emt 0:00:09]} 25. Kxd1 {[%emt 0:00:01]} Ke8 {[%emt 0:01:50]} 26. Kc2 {[%emt 0:01:20]} Nb8 {[%emt 0:01:28]} 27. Kc3 {[%emt 0:00:24]} Kd7 {[%emt 0:00:28]} 28. Kb4 {[%emt 0:01:36]} Kc7 {[%emt 0:02:54]} 29. Kc3 {[%emt 0:02:02]} Nc6 {[%emt 0:00:57]} 30. a3 {[%emt 0:01:25]} Kd7 {[%emt 0:01:00]} 1/2-1/2